bitfinex-derivatives/quotes_SOLF0:USTF0_20250319
["timestamp","ask_amount","ask_price","bid_price","bid_amount"]
[1742383359248,0.04616904,127.92,127.9,0.05956435]
[1742383360049,7.86416904,127.92,127.9,0.05956435]
[1742383360347,0.04616904,127.92,127.9,0.05956435]
[1742383360849,62.0,127.91,127.9,0.05956435]
[1742383364358,62.0,127.91,127.9,7.87876435]
[1742383365651,0.04616904,127.92,127.91,7.8186]
[1742383367052,0.04616904,127.92,127.9,0.05956435]
[1742383367654,7.86456904,127.92,127.9,0.05956435]
[1742383367954,0.04616904,127.92,127.9,0.05956435]
[1742383368753,62.0,127.91,127.9,0.05956435]
[1742383369858,62.0,127.91,127.9,7.87876435]
[1742383371159,0.04616904,127.92,127.91,7.8186]
[1742383371458,50.6958,127.96,127.9,0.05956435]
[1742383371654,50.6958,127.96,127.92,7.8176]
[1742383372155,50.6958,127.96,127.88,60.47903478]
[1742383372356,42.88,127.96,127.88,60.47903478]
[1742383372557,42.88,127.96,127.91,0.05699872]
[1742383372763,7.8176,127.93,127.91,0.05699872]
[1742383373356,7.8171,127.94,127.91,0.05699872]
[1742383373956,7.8176,127.93,127.91,0.05699872]
[1742383374258,62.0,127.93,127.91,0.05699872]
[1742383375057,62.0,127.93,127.91,7.87539872]
[1742383375360,62.0,127.93,127.91,0.05699872]
[1742383375557,62.0,127.93,127.92,7.818]
[1742383375963,62.0,127.93,127.91,0.05699872]
[1742383376256,62.0,127.93,127.92,7.818]
[1742383377662,62.0,127.93,127.91,0.05699872]
[1742383377663,4.0039,127.97,127.93,7.817]
[1742383378062,11.8191,127.97,127.94,0.05342394]
[1742383378462,4.0039,127.97,127.94,0.05342394]
[1742383378666,11.8191,127.97,127.94,7.87012394]
[1742383378861,4.0039,127.97,127.94,0.05342394]
[1742383380359,11.8191,127.97,127.94,0.05342394]
[1742383380663,62.0,127.97,127.94,0.05342394]
[1742383381164,61.95169132,127.97,127.96,7.8155]
[1742383381461,8.2439,128.04,127.96,60.43903478]
[1742383381665,8.2439,128.04,128.01,7.8121]
[1742383381863,51.0839,128.04,127.95,4.118]
[1742383382164,62.0,128.03,127.95,4.118]
[1742383382367,62.0,128.03,127.98,0.05888082]
[1742383382659,42.84,128.02,127.98,0.05888082]
[1742383382866,64.55643478,128.02,127.98,0.05888082]
[1742383383163,42.84,128.02,127.98,0.05888082]
[1742383383463,269.64,128.03,127.98,7.87288082]
[1742383383658,269.64,128.03,127.98,0.05888082]
[1742383384069,269.64,128.03,127.99,7.8134]
[1742383384268,4.2228,128.04,127.98,17.6579156]
[1742383384567,7.8116,128.03,127.98,7.87278082]
[1742383384755,7.8116,128.03,127.98,0.05888082]
[1742383384963,42.82,128.03,127.98,0.05888082]
[1742383385870,62.0,128.02,127.98,7.87288082]
[1742383386159,62.0,128.02,127.99,42.82]
[1742383386356,8.4607,128.1,128.0,17.59903478]
[1742383386559,26.05973478,128.1,127.99,64.74013478]
[1742383386760,17.59903478,128.08,128.03,0.04935681]
[1742383386960,7.8104,128.05,128.03,0.04935681]
[1742383387668,46.8185,128.07,128.03,0.04935681]
[1742383387870,287.15903478,128.06,127.95,60.39903478]
[1742383388068,7.8116,128.03,127.99,7.8133]
[1742383388270,50.6116,128.03,127.95,60.39903478]
[1742383388670,42.8,128.03,128.0,7.8131]
[1742383389168,42.84935681,128.03,128.0,0.05739987]
[1742383389467,7.8125,128.01,127.94,8.3721]
[1742383389770,42.8,128.0,127.94,8.3721]
[1742383389972,50.6131,128.0,127.94,8.3721]
[1742383390359,42.8,128.0,127.93,64.54774738]
[1742383390564,0.04993716,127.98,127.96,0.0539108]
[1742383391467,3.716e-05,127.98,127.97,7.8149]
[1742383392273,3.716e-05,127.98,127.97,25.41393478]
[1742383392471,42.78,128.03,128.01,7.812]
[1742383392673,62.0,128.02,128.01,7.812]
[1742383393768,0.05139579,128.03,128.02,7.8119]
[1742383393984,42.78,128.08,128.01,17.59903478]
[1742383394270,42.78,128.1,128.03,17.59903478]
[1742383394675,7.8083,128.08,128.03,17.59903478]
[1742383394873,42.78,128.1,128.05,7.81]
[1742383395062,269.54,128.11,128.02,28.08994638]
[1742383395263,42.78,128.14,128.05,28.08994638]
[1742383395467,42.78,128.14,128.06,4.1733]
[1742383395668,7.8055,128.13,128.06,4.1733]
[1742383395866,7.8055,128.13,128.09,7.86043809]
[1742383396067,269.54,128.16,128.09,0.05313809]
[1742383396268,8.3851,128.18,128.09,0.05313809]
[1742383396467,46.8844,128.17,128.06,46.9333]
[1742383396671,69.8043,128.15,128.12,0.059883]
[1742383396872,62.0,128.15,128.12,0.059883]
[1742383397073,104.76,128.15,128.12,0.059883]
[1742383397272,112.5645,128.15,128.12,0.059883]
[1742383397473,42.76,128.14,128.12,0.059883]
[1742383397874,7.8051,128.13,128.12,0.059883]
[1742383398174,42.76,128.14,128.12,0.059883]
[1742383400175,62.0,128.15,128.12,0.059883]
[1742383400979,8.3851,128.18,128.13,7.8047]
[1742383401176,42.72,128.22,128.12,42.799883]
[1742383401381,42.72,128.22,128.13,4.3045]
[1742383401569,42.72,128.22,128.16,0.052328]
[1742383402173,7.8027,128.17,128.16,0.052328]
[1742383402978,7.8049,128.14,128.09,42.72]
[1742383403180,7.8049,128.14,128.09,50.5275]
[1742383403379,7.8049,128.14,128.08,269.42]
[1742383403683,7.8049,128.14,128.1,7.8069]
[1742383403882,7.8052,128.13,128.08,269.42]
[1742383404179,0.05036156,128.12,128.09,7.8631377]
[1742383404482,0.05036156,128.12,128.09,0.0559377]
[1742383404681,0.05036156,128.12,128.1,7.8065]
[1742383405981,8.3439537,128.31,128.09,42.7559377]
[1742383406187,42.7,128.21,128.11,28.08994638]
[1742383406478,42.7,128.2,128.11,70.78994638]
[1742383406681,42.7,128.21,128.11,70.78994638]
[1742383407086,62.0,128.2,128.11,70.78994638]
[1742383407380,42.7,128.21,128.15,0.05238882]
[1742383407583,42.7,128.21,128.15,51.03428882]
[1742383407785,42.7,128.21,128.17,7.8027]
[1742383408179,7.7976,128.26,128.21,7.8]
[1742383408378,8.3947,128.29,128.18,42.68]
[1742383408587,8.3947,128.29,128.22,0.06024996]
[1742383408774,7.7969,128.27,128.22,0.06024996]
[1742383408980,8.3947,128.29,128.22,0.06024996]
[1742383409175,31.82290268,128.35,128.22,4.12124996]
[1742383409381,42.68,128.34,128.23,28.08994638]
[1742383409582,42.68,128.34,128.27,0.05538414]
[1742383409774,7.7939,128.32,128.27,0.05538414]
[1742383410176,62.0,128.31,128.27,0.05538414]
[1742383410377,7.7933,128.33,128.27,7.7964]
[1742383410579,42.68,128.32,128.28,0.05264875]
[1742383411583,42.66,128.32,128.28,0.05264875]
[1742383411774,28.08994638,128.36,128.28,0.05264875]
[1742383411982,42.66,128.37,128.32,7.7933]
[1742383412178,42.66,128.37,128.31,0.05853059]
[1742383412785,51.2186,128.37,128.31,0.05853059]
[1742383413284,62.0,128.36,128.31,0.05853059]
[1742383413480,69.7914,128.36,128.31,0.05853059]
[1742383413696,62.0,128.36,128.31,0.05853059]
[1742383414782,62.0,128.36,128.26,42.62]
[1742383415186,62.0,128.36,128.27,7.7966]
[1742383415786,7.7937,128.32,128.26,50.417]
[1742383415986,7.7937,128.32,128.3,0.04966719]
[1742383416282,36.64854638,128.37,128.3,0.04966719]
[1742383416283,8.5586,128.37,128.3,0.04966719]
[1742383416486,51.1786,128.37,128.3,0.04966719]
[1742383416782,7.85082602,128.35,128.3,7.84406719]
[1742383417289,7.85082602,128.35,128.3,0.04966719]
[1742383417586,7.7924,128.34,128.3,0.04966719]
[1742383417784,0.05872602,128.35,128.3,0.04966719]
[1742383418186,7.85092602,128.35,128.3,0.04966719]
[1742383418578,7.7928,128.34,128.3,7.84426719]
[1742383418977,0.05872602,128.35,128.3,7.84426719]
[1742383419278,7.7924,128.34,128.3,7.84426719]
[1742383419481,0.05872602,128.35,128.3,0.04966719]
[1742383419988,0.05872602,128.35,128.3,8.07666719]
[1742383420184,0.05872602,128.35,128.33,7.7926]
[1742383420385,0.05872602,128.35,128.3,8.07666719]
[1742383420584,0.05872602,128.35,128.3,8.027]
[1742383420892,0.05872602,128.35,128.34,7.7924]
[1742383422084,0.05872602,128.35,128.33,7.7928]
[1742383422290,0.05872602,128.35,128.31,0.05309868]
[1742383422486,0.05872602,128.35,128.33,7.7924]
[1742383422686,0.05872602,128.35,128.31,0.05309868]
[1742383424285,46.5989,128.36,128.31,0.05309868]
[1742383424481,42.56,128.35,128.31,0.05309868]
[1742383424686,4.249,128.37,128.31,0.05309868]
[1742383425678,62.0,128.36,128.31,0.05309868]
[1742383425892,62.0,128.36,128.34,7.792]
[1742383426284,62.0,128.36,128.34,7.84382439]
[1742383426485,62.0,128.36,128.34,0.05172439]
[1742383426986,62.0,128.36,128.34,7.84392439]
[1742383427195,62.0,128.36,128.34,0.05172439]
[1742383427494,62.0,128.36,128.35,7.7918]
[1742383427683,62.0,128.36,128.34,0.05172439]
[1742383428083,50.3518,128.35,128.34,0.05172439]
[1742383428586,42.56,128.35,128.31,7.7941]
[1742383429189,7.7929,128.34,128.31,7.7941]
[1742383429795,33.01125482,128.35,128.31,7.85017041]
[1742383429996,33.01125482,128.35,128.31,0.05607041]
[1742383430291,33.01125482,128.35,128.32,7.7932]
[1742383430694,33.01125482,128.35,128.31,0.05607041]
[1742383430894,40.80335482,128.35,128.32,7.7933]
[1742383431090,33.01125482,128.35,128.31,0.05607041]
[1742383431686,10.0,128.35,128.31,0.05607041]
[1742383432193,52.54,128.35,128.31,0.05607041]
[1742383432795,2.27270161,128.38,128.31,28.14601679]
[1742383433687,2.27270161,128.38,128.31,0.05607041]
[1742383433688,44.79270161,128.38,128.31,0.05607041]
[1742383433889,42.52,128.37,128.31,0.05607041]
[1742383434095,2.27270161,128.38,128.31,28.14601679]
[1742383434298,2.27270161,128.38,128.37,7.7906]
[1742383434590,2.27270161,128.38,128.34,28.08994638]
[1742383434787,2.27270161,128.38,128.37,7.7906]
[1742383436494,1.61e-06,128.38,128.37,7.7906]
[1742383436997,1.61e-06,128.38,128.36,0.0536322]
[1742383437398,1.61e-06,128.38,128.37,7.7906]
[1742383438195,1.61e-06,128.38,128.37,317.38054638]
[1742383438499,42.5,128.49,128.37,322.09784638]
[1742383438702,42.5,128.48,128.37,83.09784638]
[1742383438908,42.5,128.48,128.43,7.7866]
[1742383439599,42.5,128.48,128.42,0.05355492]
[1742383440201,268.76,128.52,128.42,0.05355492]
[1742383440399,311.26,128.52,128.4,28.08994638]
[1742383440705,311.26,128.52,128.46,0.05883162]
[1742383440915,1.4255905,128.51,128.46,0.05883162]
[1742383441206,62.0,128.5,128.46,0.05883162]
[1742383441400,42.48,128.49,128.46,0.05883162]
[1742383442001,42.48,128.49,128.39,42.5]
[1742383442201,42.48,128.49,128.37,12.5079]
[1742383443100,0.05090738,128.44,128.42,0.05544002]
[1742383443399,7.7849,128.47,128.42,0.05544002]
[1742383443595,0.05491008,128.44,128.42,0.05544002]
[1742383443805,42.48,128.44,128.42,0.05544002]
[1742383444108,42.52989991,128.44,128.42,0.05544002]
[1742383444506,0.04989991,128.44,128.42,0.05544002]
[1742383445408,0.04989991,128.44,128.42,7.84284002]
[1742383445611,62.0,128.43,128.42,7.84284002]
[1742383445915,0.04989991,128.44,128.42,7.84284002]
[1742383446102,0.04989991,128.44,128.42,0.05544002]
[1742383446500,7.7869,128.43,128.42,0.05544002]
[1742383447906,4.30969991,128.44,128.37,41.8622593]
[1742383448114,3.9892,128.42,128.37,41.8622593]
[1742383448318,42.44,128.41,128.37,41.8622593]
[1742383448811,42.44,128.41,128.37,49.6524593]
[1742383449007,62.05366973,128.4,128.38,0.05938768]
[1742383449806,268.68,128.39,128.37,35.3345593]
[1742383450013,7.7906,128.37,128.36,83.99872861]
[1742383450606,7.7906,128.37,128.36,0.27421]
[1742383450808,7.7924,128.34,128.33,31.49297464]
[1742383451008,42.44,128.34,128.33,31.49297464]
[1742383452813,42.44,128.34,128.33,39.28597464]
[1742383453015,104.44,128.34,128.33,31.49297464]
[1742383453219,62.0,128.34,128.33,31.49297464]
[1742383453714,62.0,128.34,128.32,0.05147614]
[1742383454216,62.0,128.34,128.32,7.84487614]
[1742383454411,62.0,128.34,128.32,0.05147614]
[1742383454614,0.0557617,128.35,128.34,7.7924]
[1742383455713,0.0557617,128.35,128.32,0.05147614]
[1742383457617,62.0,128.34,128.32,0.05147614]
[1742383457819,42.42,128.33,128.32,0.05147614]
[1742383459314,50.213,128.33,128.32,0.05147614]
[1742383461218,112.213,128.33,128.32,0.05147614]
[1742383461421,7.7946,128.31,128.26,28.08994638]
[1742383461720,42.42,128.3,128.27,4.2306]
[1742383462111,42.42,128.3,128.27,12.0269]
[1742383462311,42.42,128.3,128.27,4.2306]
[1742383462514,42.42,128.3,128.28,7.7956]
[1742383462716,42.47605679,128.3,128.27,4.28172736]
[1742383463011,42.47605679,128.3,128.29,7.7954]
[1742383463417,42.47605679,128.3,128.27,4.28172736]
[1742383463620,50.27105679,128.3,128.27,12.07802736]
[1742383464615,62.0,128.29,128.27,0.05112736]
[1742383465516,62.0,128.29,128.28,7.796]
[1742383465717,42.47605679,128.3,128.27,0.05112736]
[1742383465919,42.47605679,128.3,128.27,17.55539978]
[1742383466117,0.05605679,128.3,128.29,7.7954]
[1742383466318,52.4,128.34,128.29,17.50427242]
[1742383466520,10.0,128.34,128.33,7.793]
[1742383468124,3.4698,128.34,128.33,7.793]
[1742383468623,5.443e-05,128.35,128.34,7.7924]
[1742383468917,268.82,128.43,128.33,25.30427242]
[1742383469122,268.82,128.43,128.42,7.7875]
[1742383469518,4.2396,128.47,128.37,27.93989778]
[1742383469724,42.4,128.46,128.38,4.2613]
[1742383470222,0.05144433,128.43,128.42,7.7875]
[1742383470824,8.2371,128.5,128.41,0.05228055]
[1742383470825,86.16789163,128.51,128.41,0.05228055]
[1742383471021,10.0,128.52,128.43,27.93989778]
[1742383471221,10.0,128.52,128.4,70.31989778]
[1742383471618,17.7816,128.52,128.4,70.31989778]
[1742383471822,62.0,128.51,128.4,70.31989778]
[1742383472024,0.05112402,128.47,128.45,0.05520948]
[1742383473427,42.36,128.51,128.45,0.05520948]
[1742383474933,70.29989778,128.51,128.45,0.05520948]
[1742383475133,70.29989778,128.51,128.38,4.2613]
[1742383475338,62.0,128.46,128.38,4.2613]
[1742383475634,42.36,128.45,128.38,4.2613]
[1742383476330,0.0528286,128.43,128.4,0.05993419]
[1742383477138,42.34,128.42,128.4,0.05993419]
[1742383477532,50.1276,128.42,128.4,0.05993419]
[1742383477731,42.34,128.42,128.4,0.05993419]
[1742383477927,50.1278,128.42,128.4,0.05993419]
[1742383478328,42.34,128.42,128.4,0.05993419]
[1742383478634,7.7881,128.41,128.4,0.05993419]
[1742383479025,7.79,128.38,128.33,7.9237]
[1742383479332,42.34,128.38,128.33,7.9237]
[1742383479535,42.34,128.38,128.36,7.7907]
[1742383480034,42.34,128.41,128.36,7.7908]
[1742383480426,0.05224262,128.38,128.36,0.05495398]
[1742383481929,62.05224262,128.38,128.36,0.05495398]
[1742383482631,0.05224262,128.38,128.36,0.05495398]
[1742383483028,42.32,128.51,128.37,70.25989778]
[1742383483334,42.32,128.51,128.4,27.93989778]
[1742383483538,7.7835,128.49,128.44,7.786]
[1742383483833,42.32,128.51,128.43,27.93989778]
[1742383484034,7.7837,128.49,128.44,7.786]
[1742383484234,0.05433384,128.48,128.46,0.05736002]
[1742383484932,7.83823384,128.48,128.46,0.05736002]
[1742383485237,0.05433384,128.48,128.46,0.05736002]
[1742383485636,62.0,128.47,128.46,0.05736002]
[1742383486539,69.7845,128.47,128.46,0.05736002]
[1742383486735,112.0845,128.47,128.46,0.05736002]
[1742383486928,7.7879,128.42,128.37,27.93989778]
[1742383487132,42.3,128.44,128.37,27.93989778]
[1742383487335,42.3,128.44,128.39,7.789]
[1742383487531,7.7883,128.41,128.37,27.93989778]
[1742383487734,7.7883,128.41,128.36,54.5499]
[1742383487939,7.7883,128.41,128.37,7.7902]
[1742383488136,0.05804078,128.4,128.37,0.05031002]
[1742383488538,0.05804078,128.4,128.38,7.7896]
[1742383488737,0.05804078,128.4,128.37,0.05031002]
[1742383489142,0.05804078,128.4,128.38,7.7895]
[1742383489539,0.05804078,128.4,128.38,7.7899]
[1742383489936,0.05804078,128.4,128.37,0.05031002]
[1742383490136,42.3,128.45,128.37,27.9902078]
[1742383490342,42.3,128.45,128.37,27.93989778]
[1742383490541,7.7872,128.43,128.39,7.789]
[1742383491342,0.05135382,128.42,128.4,0.05932005]
[1742383491645,50.0886,128.41,128.4,0.05932005]
[1742383492741,42.3,128.41,128.4,0.05932005]
[1742383493135,104.3,128.41,128.4,0.05932005]
[1742383493744,0.05660295,128.42,128.4,0.05932005]
[1742383494539,310.9,128.47,128.4,0.05932005]
[1742383494745,7.7861,128.45,128.41,7.7878]
[1742383495143,7.786,128.45,128.41,7.7878]
[1742383495646,310.9,128.47,128.42,0.05835487]
[1742383496044,310.9,128.47,128.42,7.84575487]
[1742383496244,310.9,128.47,128.42,0.05835487]
[1742383496841,62.0,128.46,128.42,0.05835487]
[1742383497647,62.0,128.46,128.45,7.7857]
[1742383498050,62.0,128.46,128.42,0.05835487]
[1742383498237,62.0,128.46,128.43,7.7865]
[1742383498440,42.28,128.45,128.42,0.05835487]
[1742383499449,7.7869,128.43,128.42,0.05835487]
[1742383500242,310.88,128.45,128.36,12.2499]
[1742383500448,42.28,128.44,128.36,12.2499]
[1742383500848,7.789,128.4,128.36,8.0142]
[1742383501048,42.28,128.41,128.36,3.9392]
[1742383501246,42.28,128.41,128.35,7.7914]
[1742383501451,0.05328623,128.4,128.37,0.05146661]
[1742383502747,7.7921,128.35,128.32,12.0496]
[1742383502949,42.28,128.36,128.3,54.88716666]
[1742383503154,42.28,128.35,128.3,54.88716666]
[1742383503349,268.6,128.39,128.28,4.1975]
[1742383503553,268.6,128.39,128.3,27.93989778]
[1742383503854,42.28,128.4,128.37,7.7905]
[1742383504051,2.92e-05,128.36,128.33,70.27276515]
[1742383504257,42.28,128.4,128.33,70.21989778]
[1742383504556,42.28,128.4,128.38,7.7895]
[1742383504757,42.28,128.4,128.34,8.4874]
[1742383504953,104.28,128.4,128.37,7.7901]
[1742383505147,104.28,128.4,128.35,4.1975]
[1742383505654,0.05149687,128.39,128.36,0.05964986]
[1742383506055,104.28,128.4,128.38,7.7899]
[1742383506254,0.05301554,128.39,128.36,0.05414745]
[1742383507356,1.554e-05,128.39,128.38,7.7899]
[1742383510653,1.554e-05,128.39,128.37,7.7903]
[1742383511559,1.554e-05,128.39,128.38,7.7899]
[1742383515355,42.26,128.46,128.43,7.7867]
[1742383515560,50.0454,128.46,128.43,7.7867]
[1742383515759,42.26,128.46,128.42,7.7874]
[1742383516063,7.786,128.45,128.37,36.56949778]
[1742383516364,42.26,128.45,128.37,36.56949778]
[1742383516565,0.02064283,128.42,128.4,0.05596803]
[1742383517061,0.02064283,128.42,128.4,7.84436803]
[1742383517861,0.02064283,128.42,128.41,7.7881]
[1742383518062,62.02064283,128.42,128.41,7.7881]
[1742383518257,0.02064283,128.42,128.41,7.7881]
[1742383518864,7.7848,128.47,128.44,7.7862]
[1742383519165,42.26,128.48,128.4,27.93989778]
[1742383519364,7.7854,128.46,128.43,7.7866]
[1742383519663,310.9,128.49,128.4,27.93989778]
[1742383519963,7.7845,128.48,128.45,7.7856]
[1742383520562,310.9,128.49,128.45,7.7856]
[1742383520969,7.7842,128.48,128.46,0.05412033]
[1742383521164,62.0,128.47,128.46,0.05412033]
[1742383522162,4.0576,128.51,128.46,0.05412033]
[1742383522362,42.26,128.51,128.46,0.05412033]
[1742383522762,42.26,128.51,128.47,7.7841]
[1742383522971,52.26,128.52,128.46,0.05412033]
[1742383523162,52.26,128.52,128.46,7.83882033]
[1742383523471,52.26,128.52,128.46,0.05412033]
[1742383524075,10.0,128.52,128.46,0.05412033]
[1742383524674,10.0,128.52,128.46,27.99401811]
[1742383525169,72.0,128.52,128.46,27.99401811]
[1742383525875,114.24,128.52,128.46,0.05412033]
[1742383526071,7.7835,128.49,128.46,0.05412033]
[1742383526274,114.24,128.52,128.46,0.05412033]
[1742383526477,42.24,128.49,128.46,0.05412033]
[1742383527770,4.3058,128.51,128.47,7.7845]
[1742383527970,4.3058,128.51,128.46,0.05412033]
[1742383528170,4.3058,128.51,128.48,7.7834]
[1742383528370,122.0218,128.52,128.48,7.7834]
[1742383528568,114.24,128.52,128.48,7.7834]
[1742383528771,114.24,128.52,128.49,7.83427405]
[1742383529172,114.24,128.52,128.49,0.05107405]
[1742383529368,7.785,128.47,128.44,4.0703]
[1742383529677,42.24,128.48,128.43,4.265]
[1742383529873,42.24,128.48,128.45,7.7854]
[1742383530079,42.24,128.48,128.43,4.265]
[1742383530576,0.05107405,128.47,128.45,7.7857]
[1742383531080,0.05107405,128.47,128.44,0.05252951]
[1742383531781,0.05107405,128.47,128.46,7.7851]
[1742383533878,52.22,128.52,128.49,7.7827]
[1742383534079,52.22,128.52,128.43,4.265]
[1742383534080,10.0,128.52,128.45,70.15989778]
[1742383534679,10.0,128.52,128.5,7.7826]
[1742383535075,10.0,128.52,128.5,7.84174412]
[1742383535480,10.0,128.52,128.51,7.7821]
[1742383538289,4.2326,128.58,128.55,7.7796]
[1742383538585,4.1106,128.6,128.51,70.15989778]
[1742383538783,4.1106,128.6,128.56,7.7787]
[1742383538983,42.22,128.61,128.55,0.05531959]
[1742383539180,42.22,128.61,128.53,4.0476]
[1742383539372,42.22,128.61,128.57,0.05784225]
[1742383539778,7.7773,128.59,128.57,0.05784225]
[1742383539979,42.22,128.61,128.57,0.05784225]
[1742383541279,62.0,128.6,128.57,0.05784225]
[1742383541480,49.9962,128.61,128.57,0.05784225]
[1742383541679,42.22,128.61,128.57,0.05784225]
[1742383541883,42.2,128.62,128.57,0.05784225]
[1742383542480,7.7778,128.58,128.57,0.05784225]
[1742383542983,42.2,128.59,128.57,0.05784225]
[1742383544083,42.2,128.59,128.57,7.83584225]
[1742383544286,4.3232,128.63,128.57,0.05784225]
[1742383544481,104.18,128.62,128.57,7.83584225]
[1742383544888,7.7763,128.61,128.57,0.05784225]
[1742383545086,4.3232,128.63,128.57,0.05784225]
[1742383545487,49.9555,128.62,128.57,0.05784225]
[1742383546287,42.18,128.62,128.57,0.05784225]
[1742383546884,42.18,128.62,128.57,7.83594225]
[1742383547089,42.18,128.62,128.57,0.05784225]
[1742383547387,42.18,128.62,128.6,7.7766]
[1742383547589,42.18,128.62,128.55,46.1519]
[1742383547783,10.0,128.59,128.55,46.1519]
[1742383547989,72.0,128.59,128.57,0.0508345]
[1742383548190,114.18,128.59,128.57,0.0508345]
[1742383548587,121.9577,128.59,128.57,0.0508345]
[1742383548789,114.18,128.59,128.57,0.0508345]
[1742383549088,121.9576,128.59,128.57,0.0508345]
[1742383549289,114.18,128.59,128.57,0.0508345]
[1742383549690,114.18,128.59,128.57,7.8292345]
[1742383550091,114.18,128.59,128.57,0.0508345]
[1742383550288,121.9573,128.59,128.57,0.0508345]
[1742383550489,114.18,128.59,128.57,0.0508345]
[1742383550791,114.18,128.59,128.51,4.0857]
[1742383551183,3.9535,128.58,128.53,7.7805]
[1742383551392,7.7791,128.56,128.53,7.7805]
[1742383551590,49.9391,128.56,128.48,70.09989778]
[1742383551794,7.78,128.55,128.52,7.7813]
[1742383551987,0.0508345,128.53,128.51,0.04990209]
[1742383552293,0.0508345,128.53,128.51,7.83180209]
[1742383552494,0.0508345,128.53,128.51,0.04990209]
[1742383552791,42.2108345,128.53,128.51,0.04990209]
[1742383553588,7.7815,128.52,128.51,0.04990209]
[1742383553894,42.2108345,128.53,128.47,7.7841]
[1742383554185,42.16,128.53,128.47,7.7841]
[1742383554687,42.16,128.53,128.45,4.1276]
[1742383554991,0.05982851,128.5,128.48,0.05339569]
[1742383556091,0.05982851,128.5,128.49,7.7833]
[1742383556496,0.05982851,128.5,128.48,7.83699569]
[1742383556695,0.05982851,128.5,128.48,0.05339569]
[1742383557488,0.05982851,128.5,128.48,7.83699569]
[1742383557693,0.05982851,128.5,128.48,0.05339569]
[1742383558590,42.21982851,128.5,128.48,0.05339569]
[1742383558993,46.41402851,128.5,128.42,8.2676]
[1742383559196,46.3542,128.5,128.42,8.2676]
[1742383559389,7.7839,128.48,128.42,8.2676]
[1742383559595,46.3542,128.5,128.42,8.2676]
[1742383559791,46.3542,128.5,128.43,7.7868]
[1742383560096,7.83910179,128.48,128.45,0.05698596]
[1742383560494,7.7846,128.47,128.45,0.05698596]
[1742383560899,0.05520179,128.48,128.45,0.05698596]
[1742383561098,49.9449,128.47,128.45,0.05698596]
[1742383561496,7.7849,128.47,128.45,0.05698596]
[1742383561898,7.7851,128.46,128.45,0.05698596]
[1742383562103,42.21520179,128.48,128.45,0.05698596]
[1742383563195,0.05520179,128.48,128.47,7.7845]
[1742383563499,42.16,128.53,128.45,70.15688374]
[1742383563793,7.8775,128.56,128.48,27.93989778]
[1742383563998,42.16,128.58,128.48,70.09989778]
[1742383564193,46.476,128.58,128.49,3.9386]
[1742383564398,7.7792,128.56,128.53,7.7805]
[1742383564598,0.05155792,128.55,128.52,0.05005108]
[1742383565598,42.21155792,128.55,128.52,7.83115108]
[1742383565796,42.21155792,128.55,128.52,0.05005108]
[1742383566401,62.0,128.54,128.52,0.05005108]
[1742383566795,62.0,128.54,128.52,7.83125108]
[1742383567303,69.7803,128.54,128.52,0.05005108]
[1742383567691,62.0,128.54,128.52,0.05005108]
[1742383567897,62.0,128.54,128.52,7.83125108]
[1742383568097,0.05155792,128.55,128.52,0.05005108]
[1742383568396,0.05155792,128.55,128.54,7.7803]
[1742383570302,46.2621,128.6,128.57,7.7782]
[1742383570698,46.2621,128.6,128.52,4.2489]
[1742383570906,46.2621,128.6,128.51,42.16]
[1742383571205,7.7793,128.56,128.51,42.16]
[1742383571407,49.96667257,128.56,128.54,0.05218322]
[1742383571610,49.96667257,128.56,128.49,3.9386]
[1742383571908,7.7798,128.55,128.54,0.05067383]
[1742383572104,42.18737257,128.56,128.53,0.05585947]
[1742383572309,42.14,128.56,128.53,0.05585947]
[1742383572505,0.04737257,128.56,128.53,0.05585947]
[1742383572806,0.04737257,128.56,128.54,42.14]
[1742383573011,0.04737257,128.56,128.55,7.7796]